Cogmind - Beta 16 @@@ ROGUE MODE // 2025.11.15 @ 14:15:00 // Winter2019/RPGLIKE Player: Gallgagger Result: Core destroyed Performance ------------- Evolutions (0) 0 Regions Visited (2) 400 Robots Destroyed (59) 295 Value Destroyed (2015) 2015 Prototype IDs (1) 20 Alien Tech Used (0) 0 Bonus (74) 74 TOTAL SCORE: 2804 Bonus ------- High Alert Combat Kills 74 Cogmind --------- Core Integrity 0/950 Matter 2/300 Energy 275/275 System Corruption 5% Temperature Cool (0) Movement Walking (90) Location -10/Subcaves Parts ------- > --- POWER (2) -------- Ion Engine Light Ion Engine > --- PROPULSION (3+3) - Improved Aluminum Leg Improved Aluminum Leg Improved Aluminum Leg Arachnoskeleton (+++) > --- UTILITY (4) ------ Disposable Heat Sink Improved Terrain Scanner Seismic Detector Makeshift Light Armor Plating > --- WEAPON (3) ------- Riot Gun Medium Laser Battle Rifle > --- INVENTORY (2) ---- Battle Rifle Peak State ------------ > --- POWER ------------ Ion Engine Light Ion Engine > --- PROPULSION ------- Improved Aluminum Leg Improved Aluminum Leg Improved Aluminum Leg Arachnoskeleton > --- UTILITY ---------- Disposable Heat Sink Improved Terrain Scanner Seismic Detector Makeshift Light Armor Plating > --- WEAPON ----------- Riot Gun Medium Laser Battle Rifle > --- INVENTORY -------- Battle Rifle [Rating: 45] Favorites ----------- Power Ion Engine Engine Ion Engine Propulsion Improved Aluminum Leg Leg Improved Aluminum Leg Wheel Wheel Flight Unit Flight Unit Utility Improved Terrain Scanner Device Improved Terrain Scanner Protection Hardened Light Armor Plating Weapon Medium Laser Energy Gun Medium Laser Ballistic Gun Battle Rifle Build | -11 -10 -10 ------- Run | Yrd Mat Sub Slots Evolved 8 | 3 3 2 Power 1 | . . 1 Propulsion 2 | 1 1 . Utility 3 | 1 2 . Weapon 2 | 1 . 1 Parts Attached 29 | 11 10 8 Power 2 | 2 . . Engine 2 | 2 . . Core . | . . . Reactor . | . . . Propulsion 13 | 4 8 1 Treads . | . . . Leg 4 | . 3 1 Wheel 4 | 4 . . Hover . | . . . Flight 5 | . 5 . Utility 8 | 3 2 3 Device 5 | 3 . 2 Storage . | . . . Processor . | . . . Hackware . | . . . Protection 3 | . 2 1 Artifact . | . . . Weapon 6 | 2 . 4 Energy Gun 3 | 2 . 1 Energy Cannon . | . . . Ballistic Gun 3 | . . 3 Ballistic Cannon . | . . . Launcher . | . . . Special Weapon . | . . . Impact Weapon . | . . . Slashing Weapon . | . . . Piercing Weapon . | . . . Special Melee Weapon . | . . . Unidentified Prototypes 1 | . . 1 Parts Lost 2 | . . 2 Power . | . . . Propulsion . | . . . Utility 2 | . . 2 Weapon . | . . . Highest Loss Streak 1 | . . 1 To Critical Strikes . | . . . Average Backups 1 | 1 1 1 Power . | . 1 . Propulsion . | . . . Utility . | . . . Weapon . | . . . Tool/Special . | . . . Unused Backups . | . . . Power . | . . . Propulsion . | . . . Utility . | . . . Weapon . | . . . Tool/Special . | . . . Average Slot Usage (%) 91 | . 99 88 Engine 12 | . 12 12 Leg 21 | . 5 27 Wheel 2 | . 9 . Flight 4 | . 17 . Device 20 | . 25 18 Protection 8 | . 3 10 Energy Gun 16 | . 25 14 Ballistic Gun 3 | . . 4 Peak Build Rating 45 | 11 17 45 Average Rating 29 | 6 10 36 On Entrance 8 | . 9 17 Avg Prop Armor Cover (%) 11 | . 6 11 Naked Turns . | . . . Heaviest Build 26 | 11 21 26 Greatest Support 94 | 32 44 94 Greatest Overweight (x) . | . . . Average Overweight (x) . | . . . Largest Inventory Capacity 2 | 2 2 2 Average Capacity 2 | 2 2 2 Most Carried 2 | 2 2 2 Average Carried 1 | 1 1 1 Final Capacity 2 | 2 2 2 Final Carried 2 | 2 2 1 Class Distribution -------------------- 28% | Scavenger-Gunner 26% | Mutant 22% | Scavenger-Mutant 10% | Tank 9% | Gunner Dominant Class ---------------- Scavenger-Mutant | -10/Materials Scavenger-Gunner | -10/Subcaves Resources | -11 -10 -10 ----------- Run | Yrd Mat Sub Matter Collected 793 | 310 88 395 Remotely . | . . . Salvage Created 1833 | 116 785 932 Parts 112 | 7 43 62 Haulers Intercepted 1 | . 1 . Recyclers Shooed 1 | 1 . . Parts Field Recycled . | . . . Retrieved Matter . | . . . Parts Self-Destructed 23 | . . 23 Prevented . | . . . Parts Restored . | . . . Kills | -11 -10 -10 ------- Run | Yrd Mat Sub Combat Hostiles Destroyed 50 | . 24 26 Guns 48 | . 22 26 Classes Destroyed 9 | 2 5 2 Tunneler 3 | 2 1 . Hauler 1 | . 1 . Recycler 1 | 1 . . Operator 1 | . 1 . Turret 2 | . . 2 Watcher 1 | . 1 . Swarmer 8 | . 5 3 Grunt 22 | . 19 3 Subdweller 20 | . . 20 Best Kill Streak 5 | 2 5 3 Combat Bots Only 4 | . 4 3 Max Kills in Single Turn 2 | 1 2 1 Gunslinging . | . . . Exploded . | . . . Melee . | . . . Uniques/NPCs Destroyed . | . . . Combat | -11 -10 -10 -------- Run | Yrd Mat Sub Hostile Shots Fired 296 | . 83 213 Missed 106 | . 41 65 Hits 190 | . 42 148 Projectile 190 | . 42 148 AOE 2 | . . 2 Critical Strikes 2 | . . 2 Damage Taken 3245 | . 513 2732 Core 2384 | . 413 1971 Absorbed by Shields . | . . . Redirected to Core 1865 | . 314 1551 Core Remaining (%) 100 | 100 . . Volleys Fired 313 | 7 72 234 Largest 3 | 2 2 3 Hottest 125 | 100 100 125 Shots Fired 701 | 14 144 543 Gun 701 | 14 144 543 Cannon . | . . . Launcher . | . . . Special . | . . . Kinetic 203 | . . 203 Thermal 425 | 14 144 267 Explosive . | . . . Electromagnetic 73 | . . 73 Robot Hit Streak 52 | 7 12 52 Robot Miss Streak 7 | 1 3 7 Penetration Max . | . . . Secondary Targets 3 | . 1 2 Max Gunslinging Chain 1 | . 1 1 Shots Hit Robots 324 | 11 102 211 Core Hits 109 | 4 47 58 Critical Kills . | . . . Critical Parts Destroyed 1 | . . 1 Critical Strikes 38 | 1 16 21 Burn 37 | 1 16 20 Destroy 1 | . . 1 Melee Attacks . | . . . Impact . | . . . Slashing . | . . . Piercing . | . . . Sneak Attacks . | . . . Combat Hostiles . | . . . Follow-up Attacks . | . . . Damage Inflicted 4338 | 136 1335 2867 Guns 4222 | 136 1282 2804 Cannons . | . . . Explosions . | . . . Melee . | . . . Ramming 116 | . 53 63 Kinetic 1004 | . . 1004 Thermal 3198 | 136 1282 1780 Explosive . | . . . Electromagnetic 20 | . . 20 Impact . | . . . Slashing . | . . . Piercing . | . . . Highest Corruption 5 | . . 5 Average Corruption 3 | . . 3 Corruption Purged . | . . . Corruption Blocked . | . . . Overload Shots . | . . . Overflow Damage . | . . . Projectiles . | . . . Explosions . | . . . Melee . | . . . Knockbacks 1 | . 1 . Impact 1 | . 1 . Kinetic . | . . . Secondary . | . . . Self-Inflicted Damage 63 | . . 63 Shots . | . . . Rammed . | . . . Targets Rammed 8 | . 8 . Kicked 8 | . 8 . Crushed . | . . . Highest Temperature 22 | . 22 . Average Temperature 8 | . 8 . Received Heat Transfer 744 | . 198 546 Siege Activations . | . . . Martial Activations . | . . . Shielding Activations . | . . . Robots Disrupted . | . . . Combat Hostiles . | . . . Robots Corrupted . | . . . Combat Hostiles . | . . . Parts Fried 1 | . 1 . Impact Corruptions . | . . . Robots Melted 3 | . 2 1 Combat Hostiles 2 | . 2 . Parts Melted 27 | 3 11 13 Heat Transferred 12210 | 481 4995 6734 Parts Sabotaged . | . . . Parts Stolen . | . . . Parts Stripped . | . . . Power Chain Reactions . | . . . Alert | -11 -10 -10 ------- Run | Yrd Mat Sub Maximum Alert Level 2 | . 2 . Low Security (%) 18 | 100 8 . Level 1 28 | . 31 . Level 2 53 | . 60 . Level 3 . | . . . Level 4 . | . . . Level 5 . | . . . High Security . | . . . Max Security . | . . . Peak Influence 680 | 5 680 . Initial . | . . . Average 420 | 2 470 . Influence Increases 1245 | 15 970 260 Destroy 0b10 Robot/C 640 | . 480 160 Destroy 0b10 Robot/NC 35 | 15 20 . Destroy Leader 154 | . 144 10 Successful Hack 4 | . 4 . Select Force Hacks 230 | . 230 . Destroy Structure 2 | . 2 . Partial Spotted 45 | . 45 . Lose Combat Pursuer 135 | . 45 90 Influence Decreases 1245 | 15 392 838 Entered New Map 278 | . . 278 Time Decay 947 | 15 392 540 Lost Part 20 | . . 20 Squads Dispatched 11 | . 11 . Investigation 9 | . 9 . Extermination . | . . . Reinforcement 2 | . 2 . Assault . | . . . Garrison . | . . . Intercept . | . . . Searches Triggered . | . . . Construction Impeded . | . . . Haulers Reinforced . | . . . Active Scanning Responses . | . . . Cargo Convoy Interrupts . | . . . Stealth | -11 -10 -10 --------- Run | Yrd Mat Sub Distress Signals 3 | . 3 . Communications Jammed . | . . . Distress Signals . | . . . Times Spotted 69 | . 38 31 Peak Tracking Total 6 | . 5 6 Tactical Retreats 6 | . 3 3 Traps | -11 -10 -10 ------- Run | Yrd Mat Sub Traps Triggered 3 | . 2 1 Indirectly . | . . . Trap Hack Attempts . | . . . Triggered . | . . . Disarmed . | . . . Reprogrammed . | . . . Reused . | . . . Traps Extracted . | . . . Installed . | . . . Triggered . | . . . Machines | -11 -10 -10 ---------- Run | Yrd Mat Sub Machines Disabled 2 | . . 2 Max in Single Turn 1 | . . 1 Machines Repaired . | . . . Machines Dismantled . | . . . Machines Sabotaged 4 | . 4 . Overloaded Fab Kills . | . . . Hacking | -11 -10 -10 --------- Run | Yrd Mat Sub Machines Accessed 9 | . 8 1 Terminals 6 | . 6 . Fabricators . | . . . Repair Stations 1 | . 1 . Recycling Units 1 | . 1 . Scanalyzers . | . . . Garrison Access . | . . . Total Hacks 20 | . 16 4 Successful 13 | . 9 4 Failed 7 | . 7 . Catastrophic . | . . . Database Lockouts . | . . . Manual 15 | . 15 . Terminals 13 | . 13 . Fabricators . | . . . Repair Stations 2 | . 2 . Recycling Units 1 | . 1 . Scanalyzers . | . . . Garrison Access . | . . . Terminal Hacks 5 | . 1 4 Record 4 | . . 4 Dispatch Records 1 | . 1 . Fabricator Hacks . | . . . Repair Station Hacks . | . . . Recycling Unit Hacks . | . . . Scanalyzer . | . . . Garrison Access Hacks . | . . . Unauthorized Hacks 8 | . 8 . Terminals 6 | . 6 . Sabotage 6 | . 6 . Fabricators . | . . . Repair Stations 1 | . 1 . Patch 1 | . 1 . Recycling Units 1 | . 1 . Tunnel 1 | . 1 . Scanalyzers . | . . . Garrison Access . | . . . Data Cores Recovered . | . . . Used . | . . . Hacking Detections 2 | . 2 . Full Trace Events . | . . . Feedback Events . | . . . Feedback Blocked . | . . . Robot Schematics Acquired . | . . . Robots Built . | . . . Authchips . | . . . Time . | . . . Total Robot Build Rating . | . . . Part Schematics Acquired . | . . . Parts Built . | . . . Authchips . | . . . Time . | . . . Total Part Build Rating . | . . . Part Studies Acquired . | . . . Parts Repaired . | . . . Time . | . . . Parts Recycled . | . . . Recycled Matter . | . . . Retrieved Matter . | . . . Retrieved Components . | . . . Parts Scanalyzed . | . . . Part Schematics Acquired . | . . . Parts Damaged . | . . . Bothacking | -11 -10 -10 ------------ Run | Yrd Mat Sub Used RIF Installer . | . . . Robots Hacked . | . . . Non-combat . | . . . Combat . | . . . Robot Hacks Applied . | . . . Relay Couplers Released . | . . . Fabnet Peak Effective % . | . . . Robots Rewired . | . . . Allies Hacked . | . . . Hacks Repelled . | . . . Allies | -11 -10 -10 -------- Run | Yrd Mat Sub Total Allies . | . . . Largest Group . | . . . Highest-Rated Group . | . . . Highest-Rated Ally . | . . . Total Orders . | . . . Ally Attacks . | . . . Total Damage . | . . . Kills . | . . . Allies Corrupted . | . . . Allies Melted . | . . . Intel | -11 -10 -10 ------- Run | Yrd Mat Sub Active Infowar (turns) 3746 | 61 923 2762 Optics 71 | . . 71 Terrain 3746 | 61 923 2762 Seismic 3701 | 17 923 2761 Robot Analysis Total . | . . . Derelict Logs Recovered 1 | . . 1 Drone Launches . | . . . Drone Recoveries . | . . . Exploration | -11 -10 -10 ------------- Run | Yrd Mat Sub Turns Passed 3799 | 109 923 2767 Spaces Moved 2670 | 83 1181 1406 Core 3 | 3 . . Treads . | . . . Legs 1528 | . 122 1406 Wheels 221 | 80 141 . Hover . | . . . Flight 918 | . 918 . Fastest Speed 34 | 50 34 90 Average Speed 76 | 84 48 100 Slowest Speed 120 | 100 120 120 Overloaded Moves . | . . . Propulsion Burnouts . | . . . Robots Hopped 24 | . 24 . Potential Cave-ins . | . . . Cave-ins Triggered . | . . . Exploration Rate (%) 61 | 4 98 81 Regions Visited 2 Branch Regions 1 Pre-discovered Areas 2 | . 1 1 Known Exits Taken . | . . . Unknown Exits Taken 2 | 1 1 . Scrap Searched 6 | . . 6 Spaces Dug . | . . . Terrain Destroyed . | . . . Melee . | . . . Projectile . | . . . AOE . | . . . Terrain Rammed 9 | . . 9 Walls Destroyed . | . . . Machines Disabled . | . . . Actions | -11 -10 -10 --------- Run | Yrd Mat Sub Total 3793 | 102 1360 2331 Wait 700 | 2 88 610 Move 2621 | 82 1133 1406 Hop 23 | . 23 . Pick Up 2 | . 1 1 Fast Attach 17 | 7 3 7 Attach 2 | . . 2 Detach . | . . . Swap 15 | 4 7 4 Drop 9 | . 3 6 Fire 313 | 7 72 234 Melee . | . . . Ram 8 | . . 8 Kick 8 | . 8 . Crush . | . . . Escape Stasis . | . . . Rewire . | . . . Trap . | . . . Miscellaneous 75 | . 22 53 Route ------- -11/Scrapyard -10/Materials (discovered 5 exits: [*Mat x3] / [*Min] / *Sub) -10/Subcaves (discovered 2 exits: [*Mat] / [*Rec]) History --------- Turn | Location | Event 1 | -11/Scrapyard | Upgraded with Propulsion slot (x1) 1 | -11/Scrapyard | Upgraded with Utility slot (x1) 1 | -11/Scrapyard | Upgraded with Weapon slot (x1) 15 | -11/Scrapyard | Discovered new exit (range 16) 110 | -11/Scrapyard | Entered Materials 190 | -10/Materials | Discovered new exit (range 11) 230 | -10/Materials | Reached level 2 314 | -10/Materials | Build established: Scavenger-Mutant 422 | -10/Materials | Upgraded with Propulsion slot (x1) 440 | -10/Materials | Discovered new exit (range 8) 501 | -10/Materials | Discovered new exit (range 10) 539 | -10/Materials | Reached level 3 550 | -10/Materials | Discovered new exit (range 7) 840 | -10/Materials | Discovered new exit (range 11) 843 | -10/Materials | Upgraded with Utility slot (x1) 879 | -10/Materials | Upgraded with Utility slot (x1) 1033 | -10/Materials | Entered Subcaves 1035 | -10/Subcaves | Reached level 4 1087 | -10/Subcaves | Core integrity fell below 50% 1172 | -10/Subcaves | Build established: Mutant 1193 | -10/Subcaves | Discovered new exit (range 8) 1232 | -10/Subcaves | Shifting Twisted Machinery released Sub. Laser 1705 | -10/Subcaves | Visited 4L-MR0's lab 1717 | -10/Subcaves | Found Prototype Leg 1717 | -10/Subcaves | Identified Arachnoskeleton 1719 | -10/Subcaves | Attached Arachnoskeleton, gained temporary slots: Propulsion x3 1735 | -10/Subcaves | Upgraded with Power slot (x1) 1773 | -10/Subcaves | Disturbed a concealed Subdweller 1803 | -10/Subcaves | Disturbed a concealed Subdweller 1803 | -10/Subcaves | Disturbed a concealed Subdweller 1803 | -10/Subcaves | Disturbed a concealed Subdweller 1818 | -10/Subcaves | Core integrity fell below 20% 1853 | -10/Subcaves | Ambushed by Subdweller buried in earth 1906 | -10/Subcaves | Upgraded with Weapon slot (x1) 2081 | -10/Subcaves | Learned Materials interactive machine intel 2195 | -10/Subcaves | Build established: Tank 2273 | -10/Subcaves | Visited Clippyterm 2276 | -10/Subcaves | Learned location of Section 7 (-2) 2276 | -10/Subcaves | Learned Factory emergency access door positions 2300 | -10/Subcaves | Reached level 5 2304 | -10/Subcaves | Discovered new exit (range 15) 2715 | -10/Subcaves | A swath of the cavern ceiling suddenly collapsed 2979 | -10/Subcaves | A swath of the cavern ceiling suddenly collapsed 3029 | -10/Subcaves | Build established: Scavenger-Gunner 3800 | -10/Subcaves | Core destroyed Last Messages --------------- 03793_ Med. Laser temporarily disabled. 03793_ Destabilizing: System interference. 03793_ Disposable Heat Sink temporarily disabled. 03794_ Kicked Twisted Machinery. 03794_ Destabilizing: System interference. 03794_ Seismic Detector temporarily disabled. 03794_ Destabilizing: System corrupted (+1). 03795_ Kicked Twisted Machinery. 03795_ Destabilizing: Core damaged (-38). 03795_ Destabilizing: System interference. 03795_ Imp. Terrain Scanner temporarily disabled. 03796_ Kicked Twisted Machinery. 03796_ Destabilizing: Core damaged (-19). 03797_ Kicked Twisted Machinery. 03798_ Destabilizing: System corrupted (+1). 03799_ Kicked Twisted Machinery. 03799_ Destabilizing: System corrupted (+1). 03800_ Kicked Twisted Machinery. Map ----- +----------------------------------------------------+ | ?????????# """#"## # ### #### ####### | | ?????????# &"! ## * ##?### #????### | | ?????????## ""[ ]" #???# #????##? | | ?????#????### # ##" "#" [=##### ####?????? | | ????????????## ######"" ##" # ### ##?????? | | ?????????????##? ?#?###"#=#"#" # #?????? | | ????????????????? ??#?####[## ## #????#? | | ??????#?#??##??????????#&"##### # # #?????? | | ??????????#????#??#????##["#""##### #?????? | | ?????????????#?????????#""##""#?#?## ## #?????? | | ???????#????????# ??####"#""#"#??#?#### #?????? | | ????????##???????? ?##"#""#""##??#??#?### #?????? | | ???????#???????? #?#"###"###"#??#???#???# #???#?? | | ??????????#???? ####"#""#####?#??#??????##?????# | | ??????????? ??##?#"########? ?##??????????#?? | | ????????????"??? ##???##"##"###?? ##?#??#??????? | | ???????????? ? ??#?###"#"#"##?? ? #????#??????? | | ????????????? ? #???###"##""##?? ##??????????? | | ??????????? ?????###"#"####### ? ?#?#?????????? | | ???????????? ????? ###""#####???##??####???????? | | ??????????#??? ###? ??### ###?##""?#?###??#?????? | | ????????????# ##?#? ??#### #"#######?####????????? | | ??????????#?##???##? ?##"#"####"""###?#?????????? | | ???????????##????? ? ?##";#";###"#"#"###?????????? | | ???????????#?##?###? ?#"""";##"""###"###????????? | | ??????????#?##?###? ? ###@"##""###"###""#????????? | | ?????????#?#??####??? ?##"###"###"#####"###??????? | | ?????????????#???##""??##""?##""""""####""#??????# | | ??????????##??#??###?""""##""#"" ""#""""###??????? | | ?????????????#??####?"?##??#####"#"#####"#???????? | | ??????????##?#####???#???###?#?##"##??####???????? | | ???????????####?#??###?"###?## ######?##?????????? | | ????????????##?#??##???#?##???##?##??###??????#??? | | ??????????????#?#?####?#?#?##??##?#?###??????????? | | ????????????#???##?#?#??#?#?#?##?##??##????????#?? | | ?????????????????###?##????##??????????#??????#??? | | ??????????????####?##?##???######?##?????????????? | | ????????????????#?#???###??####?#??#?????????????? | | ?????????????????#?#?##?####?#?##?#??????????????? | | ??????????????????????##?###???#??????????????#??? | | ???????????????????????????#??#??????????????????? | | ?????????????????????????????????????????????????? | | ?????????????????????????????????????????????????? | | ?????????????????????????????????????????????????? | | ?????????????????????????????????????????????????? | | ?????????????????????????????????????????????????? | | ?????????????????????????????????????????????????? | | ?????????????????????????????????????????????????? | | ?????????????????????????????????????????????????? | | | +----------------------------------------------------+ Best States ------------- Heat Dissipation 55 Coolant Potential 50 Energy Generation 15 Energy Capacity 275 Matter Stores 300 Matter Capacity 300 Sight Range 21 Terrain Scan Range 16 Terrain Scan Density 10 Armor Coverage 300 Evasion (%) 63 Item Schematics ----------------- None Robot Schematics ------------------ None Fabricated ------------ Nothing Repaired ---------- Nothing Studied --------- None Alien Tech Used ----------------- None Achievements -------------- Sprinter Challenges ------------ None RPGLIKE | -11 -10 -10 --------- Run | Yrd Mat Sub Levels Raised 4 | . 2 2 XP Earned 9106 | 3000 4287 1819 XP Spent 8285 | 2970 2930 2385 Upgrades 26 | 10 5 11 Power Slot 1 | . . 1 Propulsion Slot 2 | 1 1 . Utility Slot 3 | 1 2 . Weapon Slot 2 | 1 . 1 Core Integrity 7 | . . 7 Heat Dissipation 5 | 4 1 . Mass Support 1 | . 1 . Inventory Capacity 2 | 2 . . Ranged Accuracy 1 | 1 . . TH Damage % 2 | . . 2 Protomatter Created 740 | . 346 394 Integrity Restored 1504 | . 319 1185 Core 1428 | . 243 1185 Parts 76 | . 76 . Protomatter Decayed 147 | . 105 42 Game ------ Seed SensorSpliceLegs Manual? 0 Play Time 00:24:40 Cumulative 455.0 hours Start 2025.11.15 @ 13:56:52 End 2025.11.15 @ 14:15:00 Sessions 1 Manual Loads 0 Difficulty Rogue Special Mode Winter2019/RPGLIKE Game No. 167 Rogue 13 Adventurer 154 Explorer 0 Win Type - Total 18 Types 3/3/3/3/2/1/0/1/1/1 Lore% 92 Gallery% 83 Achievement% 61 Wizard Run 0 Options --------- Layout 2 ASCII 0 Keyboard 0 Movement Numpad Keybinds 0 Fullscreen 2 Font 24/Smallcaps Map View 50x44 Zoom Use 0% Tactical HUD 1 Map Filters NONE Filters NONE Steam 1 RUN: 5828aa49-e21d-44fd-9808-c1e3dde327cc